lending/lending_fUSD_20250224
["ID","MTS","AMOUNT","RATE_DAILY","PERIOD"]
[354289957,1740394236903,-153.0,0.00017748,2]
[354289958,1740394236913,-153.0,0.00017748,2]
[354289959,1740394236922,-153.0,0.00017748,2]
[354289960,1740394236931,-153.0,0.00017748,2]
[354289961,1740394236940,-153.0,0.00017748,2]
[354289962,1740394236950,-153.0,0.00017748,2]
[354289963,1740394236960,-1268.62,0.0001775,2]
[354289964,1740394236969,-1024.11,0.0001775,2]
[354289965,1740394236979,-789.22,0.0001775,2]
[354289966,1740394236988,-723.13,0.00017751,2]
[354289967,1740394236997,-3258.84,0.00017751,2]
[354289968,1740394237006,-500.0,0.00017752,2]
[354289969,1740394237016,-1308.37,0.00017752,2]
[354289970,1740394237025,-500.0,0.00017752,2]
[354289971,1740394237035,-583.9,0.00017752,2]
[354289972,1740394237044,-581.36,0.00017752,2]
[354289973,1740394237054,-2354.29,0.00017752,2]
[354289974,1740394237063,-500.0,0.00017752,2]
[354289975,1740394237072,-657.55,0.00017752,2]
[354289976,1740394237082,-500.0,0.00017752,2]
[354289977,1740394237091,-1268.62,0.00017832,2]
[354289978,1740394237100,-1024.11,0.00017832,2]
[354289979,1740394237109,-789.22,0.00017832,2]
[354289980,1740394237119,-723.13,0.00017833,2]
[354289981,1740394237128,-3258.84,0.00017833,2]
[354289982,1740394237137,-2000.0,0.00017834,2]
[354289983,1740394237146,-500.0,0.00017834,2]
[354289984,1740394237155,-1308.37,0.00017834,2]
[354289985,1740394237165,-500.0,0.00017834,2]
[354289986,1740394237174,-583.9,0.00017834,2]
[354289987,1740394237183,-581.36,0.00017834,2]
[354289988,1740394237193,-2354.29,0.00017834,2]
[354289989,1740394237202,-626.02149336,0.00017834,2]
[354289990,1740394237211,-657.55,0.00017834,2]
[354289991,1740394237220,-500.0,0.00017834,2]
[354289992,1740394237229,-185.9,0.00017853,2]
[354289993,1740394237243,-1268.62,0.00017915,2]
[354289994,1740394237252,-1024.11,0.00017915,2]
[354289995,1740394237262,-789.22,0.00017915,2]
[354289996,1740394237272,-500.0,0.00017916,2]
[354289997,1740394237281,-1308.37,0.00017916,2]
[354289998,1740394237291,-500.0,0.00017916,2]
[354289999,1740394237300,-583.9,0.00017916,2]
[354290000,1740394237309,-581.36,0.00017916,2]
[354290002,1740394237319,-2354.29,0.00017916,2]
[354290003,1740394237329,-657.55,0.00017916,2]
[354290004,1740394237338,-723.13,0.00017916,2]
[354290005,1740394237347,-3258.84,0.00017916,2]
[354290006,1740394237356,-500.0,0.00017916,2]
[354290007,1740394237365,-980.52,0.00017917,2]
[354290008,1740394237374,-720.88456662,0.00017941,2]
[354290009,1740394237384,-1268.62,0.00017997,2]
[354290010,1740394237393,-1024.11,0.00017997,2]
[354290012,1740394237403,-789.22,0.00017997,2]
[354290014,1740394237412,-500.0,0.00017998,2]
[354290015,1740394237422,-1308.37,0.00017998,2]
[354290016,1740394237435,-500.0,0.00017998,2]
[354290017,1740394237444,-583.9,0.00017998,2]
[354290018,1740394237453,-581.36,0.00017998,2]
[354290019,1740394237462,-2354.29,0.00017998,2]
[354290020,1740394237472,-657.55,0.00017998,2]
[354290021,1740394237481,-723.13,0.00017998,2]
[354290022,1740394237490,-3258.84,0.00017998,2]
[354290023,1740394237499,-500.0,0.00017998,2]
[354290024,1740394237508,-1268.62,0.00018079,2]
[354290025,1740394237517,-1024.11,0.00018079,2]
[354290026,1740394237526,-789.22,0.00018079,2]
[354290027,1740394237535,-723.13,0.0001808,2]
[354290028,1740394237544,-3258.84,0.0001808,2]
[354290029,1740394237553,-3547.8,0.0001808,2]
[354290030,1740394237563,-2000.0,0.00018081,2]
[354290031,1740394237572,-500.0,0.00018081,2]
[354290032,1740394237581,-1308.37,0.00018081,2]
[354290033,1740394237590,-500.0,0.00018081,2]
[354290034,1740394237599,-583.9,0.00018081,2]
[354290035,1740394237608,-581.36,0.00018081,2]
[354290036,1740394237618,-2354.29,0.00018081,2]
[354290037,1740394237627,-657.55,0.00018081,2]
[354290038,1740394237636,-500.0,0.00018081,2]
[354290039,1740394237646,-200.0,0.00018082,2]
[354290040,1740394237655,-345.11914894,0.00018148,2]
[354290041,1740394237664,-500.0,0.00018153,7]
[354290042,1740394237673,-1268.62,0.00018161,2]
[354290043,1740394237683,-1024.11,0.00018161,2]
[354290044,1740394237692,-789.22,0.00018161,2]
[354290045,1740394237701,-723.13,0.00018162,2]
[354290046,1740394237710,-3258.84,0.00018162,2]
[354290047,1740394237720,-500.0,0.00018163,2]
[354290048,1740394237729,-1308.37,0.00018163,2]
[354290049,1740394237738,-500.0,0.00018163,2]
[354290050,1740394237748,-583.9,0.00018163,2]
[354290051,1740394237758,-581.36,0.00018163,2]
[354290052,1740394237768,-2354.29,0.00018163,2]
[354290053,1740394237778,-657.55,0.00018163,2]
[354290054,1740394237788,-500.0,0.00018163,2]
[354290056,1740394237798,-150.0,0.000182,2]
[354290058,1740394237807,-1268.62,0.00018243,2]
[354290060,1740394237816,-1024.11,0.00018243,2]
[354290062,1740394237826,-789.22,0.00018243,2]
[354290064,1740394237835,-723.13,0.00018244,2]
[354290066,1740394237844,-3258.84,0.00018244,2]
[354290068,1740394237853,-500.0,0.00018245,2]
[354290070,1740394237862,-1308.37,0.00018245,2]
[354290072,1740394237871,-267.40720465,0.00018245,2]
[354290074,1740394237881,-583.9,0.00018245,2]
[354290076,1740394237890,-581.36,0.00018245,2]
[354290078,1740394237899,-2354.29,0.00018245,2]
[354290080,1740394237908,-657.55,0.00018245,2]
[354290082,1740394237917,-500.0,0.00018245,2]
[354290084,1740394237926,-720.88456662,0.00018291,2]
[354290086,1740394237936,-1268.62,0.00018326,2]
[354290088,1740394237945,-1024.11,0.00018326,2]
[354290090,1740394237955,-789.22,0.00018326,2]
[354290092,1740394237964,-500.0,0.00018327,2]
[354290094,1740394237973,-1308.37,0.00018327,2]
[354290096,1740394237982,-583.9,0.00018327,2]
[354290098,1740394237992,-581.36,0.00018327,2]
[354290101,1740394238001,-2354.29,0.00018327,2]
[354290103,1740394238010,-657.55,0.00018327,2]
[354290105,1740394238020,-723.13,0.00018327,2]
[354290107,1740394238029,-3258.84,0.00018327,2]
[354290110,1740394238038,-500.0,0.00018327,2]
[354290112,1740394238047,-1268.62,0.00018408,2]
[354290114,1740394238056,-1024.11,0.00018408,2]
[354290116,1740394238066,-789.22,0.00018408,2]
[354290118,1740394238075,-500.0,0.00018409,2]
[354290120,1740394238084,-1308.37,0.00018409,2]
[354290122,1740394238094,-583.9,0.00018409,2]
[354290124,1740394238103,-581.36,0.00018409,2]
[354290126,1740394238112,-2354.29,0.00018409,2]
[354290128,1740394238121,-657.55,0.00018409,2]
[354290130,1740394238131,-723.13,0.00018409,2]
[354290132,1740394238140,-3258.84,0.00018409,2]
[354290134,1740394238150,-500.0,0.00018409,2]
[354290136,1740394238159,-150.0,0.00018419,2]
[354290138,1740394238168,-150.0,0.00018419,2]
[354290139,1740394238178,-172.66327184,0.00018419,2]
[354290140,1740394238187,-619.09,0.00018427,7]
[354290141,1740394238197,-1268.62,0.0001849,2]
[354290142,1740394238207,-1024.11,0.0001849,2]
[354290143,1740394238216,-789.22,0.0001849,2]
[354290144,1740394238225,-723.13,0.00018491,2]
[354290145,1740394238237,-3258.84,0.00018491,2]
[354290146,1740394238246,-500.0,0.00018492,2]
[354290147,1740394238256,-1308.37,0.00018492,2]
[354290148,1740394238268,-583.9,0.00018492,2]
[354290149,1740394238277,-581.36,0.00018492,2]
[354290150,1740394238286,-2354.29,0.00018492,2]
[354290151,1740394238294,-657.55,0.00018492,2]
[354290152,1740394238304,-500.0,0.00018492,2]
[354290153,1740394238313,-1268.62,0.00018572,2]
[354290154,1740394238322,-1024.11,0.00018572,2]
[354290155,1740394238332,-789.22,0.00018572,2]
[354290156,1740394238341,-723.13,0.00018573,2]
[354290157,1740394238350,-3258.84,0.00018573,2]
[354290158,1740394238359,-500.0,0.00018574,2]
[354290159,1740394238368,-1308.37,0.00018574,2]
[354290160,1740394238378,-583.9,0.00018574,2]
[354290161,1740394238387,-581.36,0.00018574,2]
[354290162,1740394238397,-2354.29,0.00018574,2]
[354290163,1740394238406,-657.55,0.00018574,2]
[354290164,1740394238415,-535.48187584,0.00018574,2]
[354290165,1740394238425,-1000.0,0.0001859,2]
[354290166,1740394238435,-345.11914894,0.00018596,2]
[354290167,1740394238444,-720.88456662,0.00018641,2]
[354290168,1740394238453,-2200.0,0.00018646,2]
[354290169,1740394238462,-1200.0,0.00018646,2]
[354290170,1740394238471,-3000.0,0.00018646,2]
[354290171,1740394238480,-1268.62,0.00018654,2]
[354290172,1740394238489,-1024.11,0.00018654,2]
[354290173,1740394238499,-789.22,0.00018654,2]
[354290174,1740394238508,-723.13,0.00018655,2]
[354290175,1740394238518,-3258.84,0.00018655,2]
[354290176,1740394238527,-500.0,0.00018656,2]
[354290177,1740394238536,-1308.37,0.00018656,2]
[354290178,1740394238545,-583.9,0.00018656,2]
[354290179,1740394238554,-581.36,0.00018656,2]
[354290180,1740394238564,-2354.29,0.00018656,2]
[354290181,1740394238574,-657.55,0.00018656,2]
[354290182,1740394238583,-1268.62,0.00018736,2]
[354290183,1740394238593,-1024.11,0.00018736,2]
[354290184,1740394238602,-789.22,0.00018736,2]
[354290185,1740394238612,-500.0,0.00018738,2]
[354290186,1740394238621,-1308.37,0.00018738,2]
[354290187,1740394238630,-583.9,0.00018738,2]
[354290188,1740394238640,-581.36,0.00018738,2]
[354290189,1740394238649,-2354.29,0.00018738,2]
[354290190,1740394238658,-657.55,0.00018738,2]
[354290191,1740394238667,-723.13,0.00018738,2]
[354290192,1740394238676,-3258.84,0.00018738,2]
[354290193,1740394238686,-1268.82316987,0.00018819,2]
[354290194,1740394238695,-1024.16308362,0.00018819,2]
[354290195,1740394238704,-789.36148381,0.00018819,2]
[354290196,1740394238713,-648.56934354,0.0001882,2]
[354290197,1740394238722,-1308.37,0.0001882,2]
[354290198,1740394238731,-583.9,0.0001882,2]
[354290199,1740394238740,-581.36,0.0001882,2]
[354290200,1740394238749,-2354.29,0.0001882,2]
[354290201,1740394238759,-657.55,0.0001882,2]
[354290202,1740394238770,-723.26713296,0.0001882,2]
[354290203,1740394238779,-3258.97698049,0.0001882,2]
[354290204,1740394238788,-1308.52,0.00018903,2]
[354290205,1740394238797,-584.10764492,0.00018903,2]
[354290206,1740394238807,-581.45478499,0.00018903,2]
[354290207,1740394238816,-2354.40559643,0.00018903,2]
[354290208,1740394238825,-657.55867625,0.00018903,2]
[354290209,1740394238834,-1275.0,0.00018939,2]
[354290210,1740394238842,-2028.0,0.00018939,2]
[354290211,1740394238851,-639.0,0.00018939,2]
[354290212,1740394238861,-150.0,0.00018939,2]
[354290213,1740394238870,-1789.0,0.00018939,2]
[354290214,1740394238880,-570.0,0.00018939,2]
[354290215,1740394238889,-478.992,0.00018939,2]
[354290216,1740394238898,-784.0,0.00018939,2]
[354290217,1740394238907,-907.0,0.00018939,2]
[354290218,1740394238916,-1267.0,0.00018939,2]
[354290219,1740394238925,-540.0,0.00018939,2]
[354290220,1740394238934,-1424.0,0.00018939,2]
[354290221,1740394238944,-2502.248,0.00018939,2]
[354290222,1740394238953,-150.0,0.00018939,2]
[354290223,1740394238962,-3921.0,0.00018939,2]
[354290224,1740394238971,-720.88456662,0.0001899,2]
[354290225,1740394238980,-345.11914894,0.00019045,2]
[354290226,1740394238989,-150.0,0.0001915,2]
[354290227,1740394238999,-150.0,0.00019177,2]
[354290228,1740394239008,-500.0,0.00019178,5]
[354290229,1740394239018,-500.0,0.00019178,5]
[354290230,1740394239027,-500.0,0.00019178,5]
[354290231,1740394239037,-500.0,0.00019178,5]
[354290232,1740394239046,-378.81185255,0.00019178,5]
[354290233,1740394239055,-150.0,0.00019205,2]
[354290234,1740394239064,-190.0,0.00019232,2]
[354290235,1740394239073,-720.88456662,0.0001934,2]
[354290236,1740394239117,-1661.63,0.00019397,30]
[354290237,1740394239127,-2000.0,0.00019399,2]
[354290238,1740394239137,-2221.78217202,0.0001949,2]
[354290239,1740394239146,-345.11914894,0.00019493,2]
[354290240,1740394239155,-150.0,0.00019551,2]
[354290241,1740394239164,-718.68183,0.000196,2]
[354290242,1740394239173,-1041.41377999,0.000196,2]
[354290243,1740394239183,-1035.52491479,0.000196,2]
[354290244,1740394239192,-1273.72189586,0.000196,2]
[354290245,1740394239201,-150.0,0.00019617,2]
[354290246,1740394239210,-150.0,0.00019627,2]
[354290247,1740394239219,-185.9,0.00019639,2]
[354290248,1740394239228,-720.88456662,0.0001969,2]
[354290249,1740394239240,-150.0,0.00019792,2]
[354290250,1740394239249,-150.0,0.00019822,2]
[354290251,1740394239258,-150.0,0.00019845,2]
[354290252,1740394239268,-150.0,0.00019875,2]
[354290254,1740394239278,-800.0,0.0001989,2]
[354290255,1740394239287,-307.48669864,0.00019892,2]
[354290256,1740394239296,-307.9,0.000199,31]
[354290258,1740394239305,-307.9,0.000199,31]
[354290259,1740394239315,-307.9,0.000199,31]
[354290261,1740394239324,-307.9,0.000199,31]
[354290263,1740394239333,-307.9,0.000199,31]
[354290265,1740394239342,-307.9,0.000199,31]
[354290266,1740394239350,-307.9,0.000199,31]
[354290267,1740394239359,-307.9,0.000199,31]
[354290268,1740394239368,-307.9,0.000199,31]
[354290269,1740394239377,-307.9,0.000199,31]
[354290270,1740394239387,-307.9,0.000199,31]
[354290271,1740394239395,-307.9,0.000199,31]
[354290272,1740394239404,-307.9,0.000199,31]
[354290273,1740394239414,-307.9,0.000199,31]
[354290274,1740394239423,-307.9,0.000199,31]
[354290275,1740394239432,-307.9,0.000199,31]
[354290276,1740394239442,-150.0,0.00019929,2]
[354290277,1740394239451,-345.11914894,0.00019942,2]
[354290278,1740394239460,-150.0,0.00019956,2]
[354290279,1740394239469,-2110.0,0.0002,2]
[354290280,1740394239479,-47258.49524577,0.0002,2]
[354290281,1740394239487,-150.0,0.0002,5]
[354290282,1740394239497,-150.0,0.00020005,5]
[354290283,1740394239507,-150.0,0.00020024,2]
[354290284,1740394239517,-307.48669864,0.00020025,2]
[354290285,1740394239526,-150.0,0.00020029,2]
[354290286,1740394239535,-720.88456662,0.0002004,2]
[354290287,1740394239544,-150.0,0.00020075,2]
[354290288,1740394239553,-150.0,0.00020075,2]
[354290289,1740394239562,-150.0,0.00020083,2]
[354290290,1740394239571,-150.0,0.00020106,2]
[354290291,1740394239580,-150.0,0.00020109,2]
[354290292,1740394239588,-150.0,0.00020131,2]
[354290293,1740394239597,-150.0,0.00020137,2]
[354290294,1740394239606,-150.0,0.00020146,2]
[354290295,1740394239615,-150.0,0.00020148,2]
[354290296,1740394239624,-190.869323,0.00020152,2]
[354290297,1740394239632,-150.0,0.00020162,2]
[354290298,1740394239642,-150.0,0.00020165,2]
[354290299,1740394239650,-150.0,0.00020183,2]
[354290300,1740394239660,-150.0,0.00020189,2]
[354290301,1740394239669,-150.0,0.00020197,2]
[354290302,1740394239678,-150.0,0.00020209,2]
[354290303,1740394239687,-150.0,0.00020215,2]
[354290304,1740394239697,-150.0,0.00020221,2]
[354290305,1740394239706,-150.0,0.00020222,2]
[354290306,1740394239715,-150.0,0.00020233,2]
[354290307,1740394239724,-150.0,0.00020275,2]
[354290308,1740394239733,-150.0,0.00020282,2]
[354290309,1740394239742,-150.0,0.000203,2]
[354290310,1740394239751,-150.0,0.00020311,2]
[354290311,1740394239761,-150.0,0.00020316,2]
[354290312,1740394239771,-150.0,0.00020328,2]
[354290313,1740394239781,-150.0,0.00020329,2]
[354290314,1740394239790,-150.0,0.00020331,2]
[354290315,1740394239799,-150.0,0.00020342,2]
[354290316,1740394239808,-292.86085184,0.00020347,2]
[354290317,1740394239817,-150.0,0.00020356,2]
[354290318,1740394239826,-150.0,0.00020356,2]
[354290319,1740394239835,-150.0,0.0002036,2]
[354290320,1740394239844,-150.0,0.00020372,2]
[354290321,1740394239853,-150.0,0.00020376,2]
[354290322,1740394239862,-150.0,0.00020382,2]
[354290323,1740394239871,-150.0,0.00020382,2]
[354290324,1740394239880,-150.0,0.00020385,2]
[354290325,1740394239889,-150.0,0.00020387,2]
[354290326,1740394239898,-156.63556037,0.0002039,2]
[354290327,1740394239907,-345.11914894,0.0002039,2]
[354290328,1740394239917,-720.88456662,0.0002039,2]
[354290329,1740394239926,-167.64807924,0.0002039,2]
[354290330,1740394239935,-2577.79613297,0.0002039,2]
[354290331,1740394239944,-181.29664066,0.0002039,2]
[354290332,1740394239954,-150.0,0.00020394,2]
[354290333,1740394239963,-150.0,0.00020395,2]
[354290334,1740394239972,-150.0,0.00020407,2]
[354290335,1740394239982,-150.0,0.00020418,2]
[354290336,1740394239991,-150.0,0.00020424,2]
[354290337,1740394240000,-150.0,0.00020439,2]
[354290338,1740394240010,-150.0,0.00020448,2]
[354290339,1740394240020,-150.0,0.00020448,2]
[354290340,1740394240030,-1000.0,0.00020448,2]
[354290341,1740394240039,-2000.0,0.00020461,2]
[354290342,1740394240048,-221.0,0.00020464,2]
[354290343,1740394240058,-152.78034127,0.00020464,2]
[354290344,1740394240068,-150.0,0.00020464,2]
[354290345,1740394240077,-150.0,0.00020466,4]
[354290346,1740394240086,-150.0,0.00020468,2]
[354290347,1740394240095,-500.0,0.00020473,2]
[354290348,1740394240105,-501.27038981,0.00020473,2]
[354290349,1740394240114,-150.0,0.00020477,2]
[354290350,1740394240123,-155.85666798,0.0002048,2]
[354290351,1740394240132,-150.0,0.00020483,2]
[354290352,1740394240142,-999.0,0.00020489,2]
[354290354,1740394240151,-3547.8,0.00020489,3]
[354290356,1740394240160,-3547.8,0.00020489,3]
[354290357,1740394240169,-3547.8,0.00020489,3]
[354290359,1740394240179,-3547.8,0.00020489,3]
[354290361,1740394240187,-3547.8,0.00020489,3]
[354290363,1740394240196,-3547.8,0.00020489,3]
[354290365,1740394240205,-3547.8,0.00020489,3]
[354290366,1740394240214,-3547.8,0.00020489,3]
[354290368,1740394240223,-3547.8,0.00020489,3]
[354290370,1740394240236,-3547.8,0.00020489,3]
[354290372,1740394240245,-3547.8,0.00020489,3]
[354290374,1740394240254,-3547.8,0.00020489,3]
[354290376,1740394240263,-3547.8,0.00020489,3]
[354290379,1740394240272,-3547.8,0.00020489,3]
[354290381,1740394240281,-3547.8,0.00020489,3]
[354290382,1740394240290,-3547.8,0.00020489,3]
[354290384,1740394240299,-3547.8,0.00020489,3]
[354290386,1740394240308,-3547.8,0.00020489,3]
[354290388,1740394240317,-3547.8,0.00020489,3]
[354290390,1740394240325,-3547.8,0.00020489,3]
[354290392,1740394240334,-3547.8,0.00020489,3]
[354290394,1740394240343,-3547.82136149,0.00020489,3]
[354290395,1740394240351,-1451665.78823778,0.0002049,30]
[354290397,1740394240360,-949.59692296,0.0002049,7]
[354290399,1740394240369,-868.38834507,0.0002049,2]
[354290401,1740394240378,-1000.0,0.0002049,30]
[354290402,1740394240387,-1000.0,0.0002049,30]
[354290404,1740394240396,-1000.0,0.0002049,30]
[354290406,1740394240404,-506.20294533,0.0002049,30]
[354290408,1740394240414,-378.32364919,0.0002049,30]
[354290410,1740394240423,-867.84636164,0.0002049,30]
[354290412,1740394240431,-1000.0,0.0002049,30]
[354290414,1740394240440,-1992.04523979,0.0002049,30]
[354290415,1740394240449,-732.33550199,0.0002049,30]
[354290417,1740394240458,-1243.15587386,0.0002049,30]
[354290419,1740394240466,-4144.95054114,0.0002049,30]
[354290421,1740394240475,-262.70665465,0.0002049,30]
[354290423,1740394240484,-36360.82757905,0.0002049,30]
[354290425,1740394240494,-850.06474632,0.0002049,30]
[354290426,1740394240502,-858.19520508,0.0002049,30]
[354290428,1740394240511,-924.39733569,0.0002049,30]
[354290430,1740394240520,-206.89931423,0.0002049,30]
[354290432,1740394240529,-954.98515961,0.0002049,30]
[354290434,1740394240539,-349.0440648,0.0002049,30]
[354290436,1740394240547,-1342.0502046,0.0002049,30]
[354290438,1740394240558,-853.32920524,0.0002049,2]
[354290440,1740394240568,-4090.35626412,0.0002049,30]
[354290442,1740394240577,-878.38321339,0.0002049,30]
[354290443,1740394240586,-4867.90469405,0.0002049,30]
[354290445,1740394240595,-58037.91813144,0.0002049,30]
[354290447,1740394240603,-202.29756529,0.0002049,30]
[354290449,1740394240612,-1071.51837977,0.0002049,30]
[354290451,1740394240621,-264.97007225,0.0002049,30]
[354290453,1740394240630,-5379.56950673,0.0002049,30]
[354290455,1740394240639,-2671.93913736,0.0002049,30]
[354290456,1740394240648,-63501.52470149,0.0002049,30]
[354290458,1740394240657,-1755.23573503,0.0002049,30]
[354290459,1740394240666,-2308.97268577,0.0002049,30]
[354290461,1740394240675,-1453.23662164,0.0002049,30]
[354290462,1740394240683,-4047.8462961,0.0002049,30]
[354290464,1740394240692,-2180.79394078,0.0002049,30]
[354290466,1740394240701,-424.18707615,0.0002049,30]
[354290467,1740394240710,-1107.23862036,0.0002049,2]
[354290469,1740394240719,-3064.04067792,0.0002049,30]
[354290471,1740394240731,-4390.00047523,0.0002049,7]
[354290472,1740394240744,-150.0,0.0002049,2]
[354290474,1740394240753,-1210.0,0.0002049,2]
[354290476,1740394240763,-696.04039224,0.0002049,2]
[354290477,1740394240772,-1961.31563045,0.0002049,5]
[354290479,1740394240782,-695.68886964,0.0002049,10]
[354290481,1740394240792,-344.70765597,0.0002049,2]
[354290483,1740394240800,-753.77997167,0.0002049,2]
[354290484,1740394240809,-1505.05399237,0.0002049,2]
[354290486,1740394240819,-1018.93642653,0.0002049,2]
[354290488,1740394240828,-2429.9130813,0.0002049,2]
[354290490,1740394240837,-150.34776051,0.0002049,2]
[354290491,1740394240846,-246.6004736,0.0002049,2]
[354290493,1740394240855,-1248.89524639,0.0002049,2]
[354290495,1740394240863,-180.32253056,0.0002049,2]
[354290497,1740394240873,-1030.86707532,0.0002049,2]
[354290499,1740394240882,-588.75086521,0.0002049,2]
[354290500,1740394240891,-1298.28377618,0.0002049,2]
[354290502,1740394240900,-1902.34462032,0.0002049,2]
[354290504,1740394240909,-182.23866906,0.0002049,2]
[354290506,1740394240920,-643.0,0.0002049,2]
[354290508,1740394240929,-960.66590866,0.0002049,2]
[354290510,1740394240939,-567.40337992,0.0002049,2]
[354290512,1740394240949,-1818.82727038,0.0002049,2]
[354290513,1740394240957,-3211.63482733,0.0002049,2]
[354290515,1740394240966,-173.66205271,0.0002049,2]
[354290517,1740394240976,-550.0,0.0002049,2]
[354290519,1740394240985,-1452.07303106,0.0002049,2]
[354290520,1740394240994,-998.17724415,0.0002049,2]
[354290522,1740394241003,-1022.23001511,0.0002049,7]
[354290524,1740394241013,-226.71667693,0.0002049,2]
[354290526,1740394241022,-172.05953383,0.0002049,2]
[354290528,1740394241030,-1456.20470613,0.0002049,2]
[354290529,1740394241039,-371.76295162,0.0002049,2]
[354290531,1740394241048,-1023.38249005,0.0002049,2]
[354290533,1740394241057,-557.61899328,0.0002049,2]
[354290535,1740394241066,-150.0,0.0002049,2]
[354290537,1740394241074,-601.13039859,0.0002049,2]
[354290539,1740394241083,-620.14905257,0.0002049,2]
[354290540,1740394241092,-216.02752485,0.0002049,5]
[354290542,1740394241101,-212.59143518,0.0002049,2]
[354290544,1740394241110,-445.56158303,0.0002049,2]
[354290546,1740394241118,-1057.21886719,0.0002049,2]
[354290548,1740394241127,-2500.0,0.0002049,2]
[354290549,1740394241136,-573.97550914,0.0002049,2]
[354290551,1740394241145,-339.06260247,0.0002049,2]
[354290553,1740394241155,-1100.0,0.0002049,2]
[354290555,1740394241163,-533.95806568,0.0002049,2]
[354290557,1740394241172,-903.89757562,0.0002049,2]
[354290559,1740394241181,-477.16564562,0.0002049,2]
[354290560,1740394241190,-227.48009563,0.0002049,2]
[354290562,1740394241199,-168.6742493,0.0002049,2]
[354290564,1740394241208,-1571.50859852,0.0002049,2]
[354290566,1740394241216,-542.55143709,0.0002049,2]
[354290568,1740394241226,-1001.93717683,0.0002049,2]
[354290570,1740394241237,-361.25598974,0.0002049,2]
[354290571,1740394241246,-2184.08204343,0.0002049,2]
[354290573,1740394241255,-280.93900159,0.0002049,2]
[354290575,1740394241264,-1818.79934461,0.0002049,2]
[354290577,1740394241274,-214.37490559,0.0002049,7]
[354290579,1740394241283,-218.15162622,0.0002049,2]
[354290581,1740394241292,-1688.89728683,0.0002049,2]
[354290582,1740394241301,-200.72897897,0.0002049,2]
[354290584,1740394241311,-279.84293867,0.0002049,2]
[354290586,1740394241321,-1002.87020798,0.0002049,2]
[354290588,1740394241330,-162.91,0.0002049,2]
[354290590,1740394241339,-990.5420673,0.0002049,60]
[354290592,1740394241348,-1696.8451327,0.0002049,90]
[354290594,1740394241357,-279.0,0.0002049,2]
[354290596,1740394241365,-135040.93739792,0.0002049,30]
[354290598,1740394241374,-113348.79573404,0.0002049,2]
[354290603,1740394241466,-3445.45137511,0.0002049,2]
[354290604,1740394241482,-456.50224098,0.00017541,2]
[354290605,1740394241491,-544.95754019,0.0002049,2]
[354290606,1740394241502,-3963.04,0.0002049,2]
[354290607,1740394241517,-35828.69944421,0.0002049,2]
[354290608,1740394241527,-2400.0,0.0002049,2]
[354290609,1740394241588,-1010.0,0.00015939,2]
[354290611,1740394241597,-1010.0,0.00018939,2]
[354290613,1740394241606,-1188.092,0.0002049,2]
[354290615,1740394241617,-612.22298979,0.0002049,2]
[354290617,1740394241630,-1921.10610854,0.0002049,2]
[354290619,1740394241640,-5822.97822069,0.0002049,2]
[354290622,1740394241651,-493.33138551,0.0002049,2]
[354290624,1740394241661,-324.31821116,0.0002049,2]
[354290626,1740394241672,-13087.90816738,0.0002049,2]
[354290628,1740394241683,-16756.50122823,0.0002049,2]
[354290630,1740394241692,-32707.47227298,0.0002049,2]
[354290632,1740394241703,-88077.12941842,0.0002049,2]
[354290634,1740394241711,-5130.54168356,0.0002049,2]
[354290636,1740394241720,-80087.35616808,0.0002049,2]